bitfinex/quotes_SOLUSD_20260203
["timestamp","ask_amount","ask_price","bid_price","bid_amount"]
[1770160006167,0.45127935,97.809,97.77,28.42]
[1770160006482,8.34327405,97.79,97.77,28.42]
[1770160007074,0.45127935,97.799,97.77,28.42]
[1770160008690,8.37110722,97.79,97.771,28.42]
[1770160008866,0.45127935,97.789,97.771,28.42]
[1770160010188,0.45127935,97.789,97.771,24.27]
[1770160010566,25.55585754,97.825,97.771,24.27]
[1770160010567,0.45880262,97.809,97.771,24.27]
[1770160011490,0.45880262,97.809,97.771,24.74145056]
[1770160011683,0.45880262,97.821,97.772,0.47145056]
[1770160011883,9.78981258,97.836,97.772,0.47145056]
[1770160011884,0.45880262,97.819,97.772,0.47145056]
[1770160012189,0.45880262,97.799,97.754,20.81219603]
[1770160012385,9.78981258,97.836,97.754,20.81219603]
[1770160012386,0.45880262,97.789,97.767,28.44]
[1770160012604,0.45880262,97.789,97.754,20.81219603]
[1770160012768,0.45880262,97.789,97.767,28.44]
[1770160013091,0.45880262,97.821,97.78,8.84255778]
[1770160013673,0.45880262,97.821,97.781,0.47145056]
[1770160014181,0.45880262,97.832,97.79,8.37110722]
[1770160014373,0.45880262,97.832,97.791,28.44]
[1770160015588,0.48267807,97.829,97.791,28.44]
[1770160016793,8.37110722,97.82,97.791,28.44]
[1770160016992,8.85378529,97.82,97.792,28.44]
[1770160017197,0.48267807,97.82,97.792,28.44]
[1770160019584,0.48267807,97.809,97.76,8.37110722]
[1770160019896,0.48267807,97.809,97.767,28.44]
[1770160020293,0.48267807,97.829,97.771,0.49583823]
[1770160020694,0.48267807,97.819,97.771,0.49583823]
[1770160020884,0.48267807,97.809,97.767,28.44]
[1770160022417,35.77013091,97.847,97.754,20.81219603]
[1770160022418,0.48267807,97.779,97.754,19.668641]
[1770160022704,9.78981258,97.808,97.754,19.668641]
[1770160022705,3.80842379,97.763,97.754,19.668641]
[1770160022878,1.04049666,97.763,97.755,28.44]
[1770160023201,1.04049666,97.763,97.756,28.44]
[1770160024904,0.93822666,97.763,97.756,28.44]
[1770160025489,0.93822666,97.763,97.754,19.668641]
[1770160025686,0.93822666,97.763,97.755,28.44]
[1770160026502,0.5,97.818,97.755,28.44]
[1770160026712,0.5,97.818,97.754,19.668641]
[1770160026884,0.5,97.799,97.755,28.44]
[1770160027286,0.5,97.799,97.76,8.37110722]
[1770160028382,0.5,97.799,97.761,28.44]
[1770160028590,0.5,97.817,97.77,8.37110722]
[1770160028785,0.5,97.817,97.771,28.44]
[1770160030907,0.5,97.817,97.772,28.44]
[1770160032300,0.5,97.817,97.78,8.37110722]
[1770160032498,0.5,97.809,97.772,28.44]
[1770160033902,0.5,97.809,97.754,19.668641]
[1770160034101,0.5,97.809,97.773,28.44]
[1770160034296,0.5,97.809,97.774,28.44]
[1770160035914,0.5,97.817,97.78,8.37110722]
[1770160037614,0.5,97.817,97.775,28.44]
[1770160037984,0.5,97.809,97.775,28.44]
[1770160038390,10.22317184,97.817,97.754,19.668641]
[1770160038391,0.5,97.789,97.754,19.668641]
[1770160038687,8.37110722,97.77,97.754,19.668641]
[1770160039909,4.27527085,97.809,97.754,0.15344241]
[1770160039910,8.37110722,97.76,97.754,0.15344241]
[1770160040134,8.37110722,97.76,97.718,0.5]
[1770160040912,8.37110722,97.77,97.72,8.37110722]
[1770160041120,13.05933028,97.772,97.731,0.5]
[1770160041287,8.37110722,97.77,97.731,0.5]
[1770160041494,8.37110722,97.79,97.741,0.5]
[1770160042504,8.37110722,97.78,97.741,0.5]
[1770160043102,8.37110722,97.76,97.708,0.5]
[1770160043291,8.37110722,97.74,97.708,0.5]
[1770160044020,8.37110722,97.75,97.708,0.5]
[1770160046195,8.37110722,97.74,97.698,0.5]
[1770160047042,8.37110722,97.74,97.68,0.1]
[1770160047043,8.37110722,97.71,97.68,0.1]
[1770160047320,5.31,97.669,97.648,0.5]
[1770160047524,5.31,97.669,97.636,0.5]
[1770160047719,5.31,97.669,97.641,0.5]
[1770160047907,3.81,97.669,97.63,0.48981689]
[1770160048106,3.81,97.669,97.629,0.3063677]
[1770160048107,0.49711711,97.668,97.631,0.48981689]
[1770160048806,0.49711711,97.659,97.629,0.3063677]
[1770160049003,3.81,97.669,97.6,5000.0]
[1770160049004,0.49711711,97.649,97.6,5000.0]
[1770160049219,0.49711711,97.649,97.601,0.48981689]
[1770160049917,0.49711711,97.639,97.6,5000.0]
[1770160050105,0.49711711,97.619,97.6,5000.0]
[1770160050524,0.49711711,97.619,97.6,4999.84336966]
[1770160051104,0.49711711,97.619,97.6,4990.2659735]
[1770160051613,8.37110722,97.61,97.6,4580.89224146]
[1770160051909,8.37110722,97.61,97.6,4529.46126059]
[1770160052131,8.37110722,97.61,97.6,4100.45402415]
[1770160052132,4.27527085,97.606,97.6,4100.45402415]
[1770160052307,4.27527085,97.606,97.6,3905.86557212]
[1770160052508,4.27527085,97.606,97.6,3195.81977755]
[1770160052707,4.27527085,97.602,97.6,3166.87587503]
[1770160052915,4.27527085,97.602,97.6,2708.77266145]
[1770160053137,4.27527085,97.602,97.6,2531.4835956]
[1770160053343,4.27527085,97.602,97.6,2416.78627784]
[1770160053510,5.31533331,97.605,97.6,2416.78627784]
[1770160053838,10.24495691,97.609,97.6,2416.78627784]
[1770160054005,4.27527085,97.606,97.6,2129.78104324]
[1770160054206,10.24495691,97.609,97.6,1435.06374991]
[1770160054537,4.27527085,97.602,97.6,831.41620819]
[1770160054826,4.27527085,97.602,97.6,818.57208985]
[1770160055327,4.27527085,97.606,97.6,622.93874008]
[1770160055927,4.27527085,97.607,97.6,622.93874008]
[1770160056421,0.0292154,97.606,97.6,622.93874008]
[1770160057010,0.0292154,97.606,97.6,620.34779872]
[1770160057914,15.36380544,97.633,97.6,620.34779872]
[1770160057915,6.1457149,97.629,97.6,620.34779872]
[1770160058218,4.27527085,97.627,97.601,28.48]
[1770160058526,6.14183173,97.691,97.621,0.5]
[1770160058708,8.37110722,97.67,97.6,620.34779872]
[1770160058908,8.37110722,97.64,97.6,600.48779872]
[1770160059107,8.37110722,97.62,97.6,583.15779872]
[1770160059319,4.27527085,97.631,97.6,478.49655296]
[1770160059524,8.37110722,97.62,97.6,487.1278268]
[1770160059728,8.37110722,97.61,97.6,415.13883074]
[1770160059925,8.37110722,97.61,97.6,56.68823349]
[1770160059926,5.36086188,97.602,97.6,56.68823349]
[1770160060127,5.36086188,97.6,97.528,28.48]
[1770160060311,0.28845041,97.566,97.511,0.5]
[1770160060514,4.27527085,97.567,97.511,0.5]
[1770160060515,4.27527085,97.567,97.529,28.19154959]
[1770160060830,5.35210941,97.599,97.551,0.6442252]
[1770160061331,24.57414514,97.664,97.55,8.37110722]
[1770160061332,8.37110722,97.6,97.561,0.6442252]
[1770160061528,5.36086188,97.63,97.562,28.48]
[1770160061529,0.49711711,97.589,97.562,28.48]
[1770160062530,0.49711711,97.601,97.562,28.48]
[1770160063417,0.49711711,97.601,97.563,28.48]
[1770160063623,5.3476732,97.611,97.581,0.48981689]
[1770160063822,5.3476732,97.611,97.582,28.48]
[1770160064015,0.49711711,97.633,97.591,0.48981689]
[1770160064336,8.86822433,97.62,97.582,28.48]
[1770160064633,0.49711711,97.62,97.583,0.48981689]
[1770160067134,0.49711711,97.62,97.591,0.48981689]
[1770160067522,0.49711711,97.62,97.611,0.48981689]
[1770160067829,5.34516036,97.66,97.641,0.57067116]
[1770160068026,10.07001378,97.745,97.655,0.57067116]
[1770160068237,8.37110722,97.69,97.655,0.57067116]
[1770160068424,5.34346461,97.696,97.655,0.57067116]
[1770160068741,4.27527085,97.707,97.66,8.39042732]
[1770160068926,8.39042732,97.7,97.655,0.57067116]
[1770160069337,8.39042732,97.7,97.656,28.5]
[1770160069541,5.34541027,97.706,97.656,28.5]
[1770160069838,8.39042732,97.69,97.656,28.5]
[1770160070024,8.39042732,97.7,97.656,28.5]
[1770160070638,0.49711711,97.705,97.67,9.16846994]
[1770160071027,0.49711711,97.705,97.68,8.39042732]
[1770160071435,0.49711711,97.705,97.671,29.25804262]
[1770160071930,8.59042732,97.71,97.671,29.25804262]
[1770160072325,0.74363552,97.699,97.655,0.77804262]
[1770160072526,8.39042732,97.69,97.656,28.48]
[1770160073045,0.74363552,97.689,97.657,28.48]
[1770160074242,2.04689434,97.709,97.657,28.48]
[1770160074243,9.13406284,97.68,97.657,28.48]
[1770160074423,9.13406284,97.67,97.657,28.48]
[1770160074625,8.39042732,97.67,97.657,28.48]
[1770160075543,0.73138299,97.679,97.657,28.48]
[1770160076041,0.73138299,97.679,97.657,25.3939]
[1770160077248,8.39042732,97.67,97.657,25.3939]
[1770160077422,4.27527085,97.701,97.657,25.3939]
[1770160077423,8.39042732,97.68,97.657,25.3939]
[1770160077846,8.39042732,97.67,97.657,25.3939]
[1770160078046,8.39042732,97.67,97.657,24.65406703]
[1770160078645,2.04773264,97.669,97.621,0.72170961]
[1770160078956,8.39042732,97.64,97.623,0.72170961]
[1770160079137,8.39042732,97.63,97.624,28.48]
[1770160079333,2.04773264,97.669,97.624,28.48]
[1770160079334,8.39042732,97.64,97.624,28.48]
[1770160079534,8.39042732,97.63,97.624,28.48]
[1770160080167,7.16706426,97.669,97.624,28.48]
[1770160080168,8.39042732,97.64,97.624,28.48]
[1770160080526,8.39042732,97.63,97.624,28.48]
[1770160080725,8.39042732,97.64,97.624,28.48]
[1770160081232,8.39042732,97.65,97.624,28.48]
[1770160081666,8.39042732,97.65,97.625,0.72170961]
[1770160081952,8.39042732,97.65,97.624,26.99494871]
[1770160083245,8.39042732,97.67,97.62,8.39042732]
[1770160083455,8.39042732,97.64,97.59,8.39042732]
[1770160083660,8.39042732,97.6,97.578,24.64]
[1770160083846,8.39042732,97.6,97.591,11.67352551]
[1770160084554,0.66905334,97.657,97.586,0.7145805]
[1770160084763,0.66905334,97.657,97.593,0.7145805]
[1770160085170,0.66905334,97.652,97.593,0.7145805]
[1770160086056,0.66905334,97.652,97.592,28.48]
[1770160086857,0.66905334,97.652,97.57,0.7145805]
[1770160087154,0.66905334,97.652,97.572,0.7145805]
[1770160087458,0.63037184,97.647,97.572,0.7145805]
[1770160088041,0.63037184,97.647,97.574,0.7145805]
[1770160088350,0.63037184,97.647,97.52,8.49042732]
[1770160088351,0.63037184,97.647,97.576,0.7145805]
[1770160088556,0.63037184,97.647,97.578,0.7145805]
[1770160088751,0.63037184,97.647,97.581,0.7145805]
[1770160089054,0.61757962,97.708,97.621,0.7145805]
[1770160089241,0.61757962,97.703,97.623,0.7145805]
[1770160089437,0.60473866,97.7,97.623,0.7145805]
[1770160090058,0.60473866,97.698,97.623,0.7145805]
[1770160090350,0.60473866,97.695,97.623,0.7145805]
[1770160090861,0.60473866,97.695,97.625,0.7145805]
[1770160092134,0.57891498,97.69,97.631,0.7145805]
[1770160092444,0.57891498,97.69,97.633,0.7145805]
[1770160092634,2.61282879,97.709,97.633,0.7145805]
[1770160092834,0.56593445,97.708,97.633,0.7145805]
[1770160093035,0.56593445,97.705,97.633,0.7145805]
[1770160094263,0.55290958,97.7,97.633,0.7145805]
[1770160094473,10.07022734,97.728,97.651,0.7145805]
[1770160094474,0.53984143,97.723,97.651,0.7145805]
[1770160094646,0.53984143,97.723,97.653,0.7145805]
[1770160094843,2.046648,97.721,97.653,0.7145805]
[1770160095203,2.04624876,97.74,97.672,0.7145805]
[1770160096458,2.0461614,97.744,97.672,0.7145805]
[1770160096655,2.0461614,97.744,97.681,0.7145805]
[1770160097160,0.71383736,97.769,97.711,0.7145805]
[1770160097333,0.71383736,97.767,97.713,0.7145805]
[1770160097539,0.70064495,97.764,97.715,0.7145805]
[1770160097856,0.70064495,97.764,97.716,29.1945805]
[1770160098058,0.70064495,97.764,97.717,0.7145805]
[1770160098246,2.04576373,97.763,97.717,0.7145805]
[1770160098445,0.70064495,97.764,97.717,0.7145805]
[1770160098648,2.04576373,97.763,97.719,0.7145805]
[1770160098948,0.70064495,97.764,97.719,0.7145805]
[1770160099756,5.34757269,97.768,97.719,0.7145805]
[1770160099962,0.67414364,97.8,97.731,0.7145805]
[1770160100153,0.67414364,97.8,97.66,51.3307855]
[1770160100154,0.67414364,97.788,97.733,0.7145805]
[1770160100362,0.67414364,97.786,97.735,0.7145805]
[1770160101455,2.04526164,97.787,97.737,0.5684943]
[1770160103565,0.59377688,97.786,97.737,0.5684943]
[1770160103967,0.59377688,97.783,97.737,0.5684943]
[1770160104357,4.27527085,97.784,97.737,0.5684943]
[1770160105357,0.59377688,97.782,97.737,0.5684943]
[1770160106159,0.59377688,97.782,97.688,24.62]
[1770160106160,0.59377688,97.779,97.738,28.46]
[1770160106359,0.59377688,97.779,97.739,28.46]
[1770160106569,2.04544989,97.778,97.74,0.56854444]
[1770160107053,2.04544989,97.778,97.726,0.56854444]
[1770160107254,2.04544989,97.778,97.741,28.46]
[1770160108271,4.27527085,97.785,97.741,28.46]
[1770160108272,2.04535572,97.783,97.742,0.56854444]
[1770160108458,4.27527085,97.785,97.742,0.56854444]
[1770160108665,2.04532438,97.784,97.744,0.56854444]
[1770160110063,2.04526164,97.787,97.744,0.56854444]
[1770160113065,5.36086188,97.783,97.71,0.56854444]
[1770160113366,5.36086188,97.783,97.712,0.56854444]
[1770160113367,4.27527085,97.78,97.712,0.56854444]
[1770160113746,4.27527085,97.784,97.712,0.56854444]
[1770160113949,4.27527085,97.784,97.714,0.56854444]
[1770160114676,4.27527085,97.784,97.716,0.56854444]
[1770160114865,5.3497114,97.788,97.75,8.38114095]
[1770160114866,3.1934013,97.788,97.75,8.38114095]
[1770160115206,0.2,97.79,97.74,8.38114095]
[1770160115365,0.59377688,97.788,97.73,8.38114095]
[1770160115752,0.59377688,97.788,97.72,8.38114095]
[1770160115948,0.59377688,97.788,97.721,28.46]
[1770160117281,0.59377688,97.786,97.721,28.46]
[1770160117774,0.59377688,97.786,97.722,28.46]
[1770160117967,0.59377688,97.783,97.722,28.46]
[1770160119373,4.27527085,97.77,97.722,6.59038939]
[1770160119673,4.27527085,97.762,97.695,24.62]
[1770160120048,14.34549819,97.762,97.695,24.62]
[1770160121367,9.63613273,97.757,97.695,24.62]
[1770160121875,9.63613273,97.757,97.602,10.24568153]
[1770160121876,4.27160603,97.756,97.67,0.5684943]
[1770160122176,4.27527085,97.728,97.659,0.5684943]
[1770160122763,4.27527085,97.752,97.659,0.5684943]
[1770160122962,4.27527085,97.752,97.661,0.5684943]
[1770160123368,5.36086188,97.752,97.661,0.5684943]
[1770160123557,9.63613273,97.752,97.661,0.5684943]
[1770160124066,9.63613273,97.752,97.663,0.5684943]
[1770160124267,9.63613273,97.752,97.665,0.5684943]
[1770160124689,4.27527085,97.748,97.665,0.5684943]
[1770160124858,4.27527085,97.74,97.665,0.5684943]
[1770160125193,4.27527085,97.737,97.665,0.5684943]
[1770160125474,5.36086188,97.732,97.665,0.5684943]
[1770160125676,4.27527085,97.732,97.654,0.5684943]
[1770160126271,9.63613273,97.727,97.654,0.5684943]
[1770160127273,4.27527085,97.728,97.654,0.5684943]
[1770160127473,3.58140533,97.727,97.654,0.5684943]
[1770160130267,3.58089235,97.741,97.654,0.5684943]
[1770160130887,1.0231121,97.741,97.661,0.49519469]
[1770160131077,1.02299697,97.752,97.671,0.49519469]
[1770160131386,3.58048939,97.752,97.673,0.49519469]
[1770160131888,7.85576024,97.752,97.673,0.49519469]
[1770160132369,4.27527085,97.751,97.673,0.49519469]
[1770160134380,3.58056265,97.75,97.673,0.49519469]
[1770160135168,4.27527085,97.742,97.673,0.49519469]
[1770160135379,4.27527085,97.738,97.673,0.49519469]
[1770160135570,13.56334273,97.738,97.673,0.49519469]
[1770160135975,4.27527085,97.73,97.673,0.49519469]
[1770160136395,4.27527085,97.73,97.647,28.46]
[1770160136396,3.58177184,97.717,97.648,0.49959012]
[1770160138876,2.55840846,97.717,97.648,0.49959012]
[1770160139486,0.48327843,97.71,97.61,0.1]
[1770160139693,0.48327843,97.688,97.61,0.1]
[1770160140374,0.48327843,97.688,97.611,28.46]
[1770160140690,0.48327843,97.688,97.612,28.46]
[1770160140879,15.43108922,97.721,97.63,8.38951489]
[1770160140880,1.02345764,97.708,97.63,8.38951489]
[1770160141084,1.02345764,97.708,97.64,8.38951489]
[1770160141282,1.50651615,97.729,97.65,8.38951489]
[1770160141488,1.50651615,97.729,97.661,0.49959012]
[1770160141871,0.48327843,97.728,97.661,0.49959012]
[1770160142372,1.5064324,97.737,97.661,0.49959012]
[1770160142687,0.48327843,97.736,97.661,0.49959012]
[1770160142870,0.48327843,97.734,97.661,0.49959012]
[1770160143499,0.48327843,97.757,97.671,0.49959012]
[1770160143793,1.02284001,97.767,97.691,0.49959012]
[1770160143968,1.02284001,97.767,97.701,0.49959012]
[1770160144170,0.48327843,97.781,97.71,8.38951489]
[1770160144366,1.0226099,97.789,97.711,0.49959012]
[1770160144875,1.0226099,97.789,97.721,0.49959012]
[1770160145215,1.50582728,97.795,97.731,0.49959012]
[1770160145407,1.50582728,97.795,97.732,28.48]
[1770160145714,5.34901832,97.8,97.751,0.49959012]
[1770160145871,4.08706117,97.87,97.751,0.49959012]
[1770160146071,7.75517713,97.887,97.751,0.49959012]
[1770160146072,9.28807188,97.857,97.751,0.49959012]
[1770160146274,102.3,98.181,97.79,8.38951489]
[1770160146275,3.37381329,97.82,97.79,8.38951489]
[1770160146495,2.55401277,97.886,97.79,8.38951489]
[1770160146704,5.34532496,97.864,97.79,8.38951489]
[1770160147010,2.55401277,97.886,97.79,8.38951489]
[1770160147295,5.34495356,97.864,97.8,8.38951489]
[1770160147595,5.34495356,97.864,97.76,8.38951489]
[1770160147596,0.5,97.902,97.84,8.38951489]
[1770160147770,0.5,97.902,97.85,8.38951489]
[1770160147974,5.3426364,97.924,97.83,8.38951489]
[1770160147975,0.5,97.891,97.83,8.38951489]
[1770160148174,0.5,97.905,97.846,28.46]
[1770160148393,0.5,97.918,97.86,8.38951489]
[1770160148595,0.2,97.93,97.88,8.38951489]
[1770160148876,5.76069147,97.895,97.88,1.99248177]
[1770160149104,6.65526357,97.929,97.895,5.76069147]
[1770160149308,1.02026268,98.014,97.881,10.21648736]
[1770160149309,0.5,97.986,97.92,8.38951489]
[1770160149482,0.5,98.002,97.94,8.38951489]
[1770160149683,0.5,98.015,97.95,8.38951489]
[1770160149991,5.33757535,98.004,97.95,8.38951489]
[1770160150180,5.33757535,98.004,97.924,4.27527085]
[1770160150379,0.2,98.03,97.99,8.38951489]
[1770160150689,0.2,98.03,98.01,8.38951489]
[1770160150997,0.7,98.1,98.02,8.38951489]
[1770160151202,0.7,98.1,98.05,8.38951489]
[1770160151203,0.2,98.1,98.05,8.38951489]
[1770160151388,0.2,98.1,98.021,28.46]
[1770160151588,0.2,98.1,98.05,8.38951489]
[1770160151909,0.2,98.1,98.06,8.38951489]
[1770160152089,0.5,98.099,97.951,50.04772823]
[1770160152286,0.5,98.092,97.952,28.44]
[1770160152479,0.5,98.092,97.97,8.38951489]
[1770160152681,0.5,98.069,97.971,28.44]
[1770160152983,9.28807188,98.091,97.972,28.44]
[1770160152984,0.5,98.067,97.972,28.44]
[1770160153500,0.5,98.048,97.973,28.44]
[1770160153697,0.5,98.048,97.974,28.44]
[1770160154381,0.5,98.048,97.883,5.36086188]
[1770160154382,0.5,98.048,97.96,8.38951489]
[1770160154781,0.5,98.048,97.961,28.42]
[1770160155096,0.5,98.046,97.961,28.42]
[1770160155298,0.5,98.063,97.99,8.38951489]
[1770160155496,0.5,98.063,98.0,8.38951489]
[1770160156003,0.5,98.094,98.01,8.38951489]
[1770160156207,0.5,98.094,98.02,8.38951489]
[1770160156386,0.5,98.093,98.0,8.38951489]
[1770160156585,0.5,98.084,97.911,50.90314274]
[1770160156813,0.5,98.079,97.923,50.7877544]
[1770160156989,0.5,98.077,97.98,8.38951489]
[1770160157498,0.5,98.077,97.923,4.27527085]
[1770160157499,0.5,98.077,97.97,8.38951489]
[1770160157685,0.5,98.068,97.97,8.38951489]
[1770160157887,0.5,98.068,97.98,8.38951489]
[1770160158489,0.5,98.068,97.97,8.38951489]
[1770160158795,0.5,98.059,97.95,8.38951489]
[1770160158985,4.27527085,98.06,97.971,28.4]
[1770160158986,0.5,98.057,97.971,28.4]
[1770160160404,0.5,98.048,97.971,28.4]
[1770160161008,0.5,98.046,97.971,28.4]
[1770160161304,0.5,98.036,97.93,8.38951489]
[1770160161504,0.5,98.031,97.91,8.38951489]
[1770160161808,0.5,98.031,97.931,21.92]
[1770160162199,0.5,98.031,97.94,8.38951489]
[1770160162719,0.5,98.031,97.95,8.38951489]
[1770160163087,0.5,98.031,97.96,8.38951489]
[1770160163285,3.56971655,98.047,97.971,0.06273464]
[1770160163286,0.5,98.029,97.971,0.06273464]
[1770160163604,0.5,98.056,98.0,8.38951489]
[1770160163984,0.5,98.056,98.001,0.06273464]
[1770160164385,0.5,98.056,98.002,28.4]
[1770160164581,0.5,98.056,97.977,28.4]
[1770160164789,0.5,98.056,97.971,28.4]
[1770160164985,0.5,98.056,97.981,0.10930687]
[1770160165219,0.5,98.056,97.923,4.27527085]
[1770160165220,0.5,98.056,97.991,0.10930687]
[1770160165383,0.5,98.054,97.992,28.4]
[1770160165582,0.5,98.054,97.993,28.4]
[1770160166010,0.5,98.054,97.993,28.5551833]
[1770160166187,0.5,98.054,97.993,28.4]
[1770160166384,0.5,98.054,97.921,66.53826513]
[1770160166385,0.5,98.054,97.969,28.4]
[1770160166602,0.5,98.054,97.97,0.20037239]
[1770160166804,0.5,98.049,97.97,0.20037239]
[1770160167500,0.5,98.049,97.981,0.24488248]
[1770160167802,0.5,98.049,97.991,0.24488248]
[1770160168203,0.5,98.049,97.993,0.24488248]
[1770160169890,0.5,98.091,98.001,0.33189854]
[1770160170101,0.5,98.091,98.003,0.33189854]
[1770160170886,0.5,98.091,98.002,28.38]
[1770160170887,0.5,98.091,98.011,0.37442073]
[1770160171806,0.5,98.091,98.013,0.41629632]
[1770160172911,0.5,98.091,98.021,0.4575332]
[1770160173107,0.5,98.127,98.051,0.4575332]
[1770160173303,0.5,98.127,98.061,0.04060594]
[1770160173500,0.7287666,98.103,98.061,0.04060594]
[1770160173699,0.7287666,98.099,98.049,0.04060594]
[1770160173906,0.7287666,98.099,98.031,0.04060594]
[1770160174108,0.7287666,98.099,98.011,0.04060594]
[1770160174413,0.7287666,98.099,98.024,0.04060594]
[1770160174613,0.7287666,98.111,98.031,0.08117942]
[1770160174816,0.7287666,98.102,98.041,0.08117942]
[1770160175214,0.7287666,98.099,98.041,0.08117942]
[1770160175713,45.20250142,98.203,98.032,26.9]
[1770160175714,0.07945504,98.1,98.08,8.38951489]
[1770160175897,0.07945504,98.1,98.035,4.27527085]
[1770160176227,0.07945504,98.1,98.07,8.38951489]
[1770160176399,0.07945504,98.1,98.032,26.9]
[1770160176400,0.04054192,98.1,98.08,8.38951489]
[1770160176601,0.04054192,98.1,98.09,8.38951489]
[1770160177024,0.04054192,98.1,98.08,8.38951489]
[1770160177422,0.04054192,98.1,98.081,0.03820662]
[1770160177931,0.0023353,98.1,98.08,8.38951489]
[1770160178231,0.82759895,98.173,98.09,8.38951489]
[1770160178404,0.26797482,98.125,98.091,28.38]
[1770160179321,0.26797482,98.125,98.041,1.01998143]
[1770160179322,0.84679539,98.124,98.061,0.0378992]
[1770160179524,0.84679539,98.124,98.063,0.0378992]
[1770160179825,0.26797482,98.125,98.064,29.3797422]
[1770160179826,0.23007562,98.125,98.064,29.3797422]
[1770160180028,0.86574499,98.124,98.065,28.36]
[1770160180323,0.23007562,98.125,98.1,8.38951489]
[1770160180501,0.19281804,98.125,98.095,28.36]
[1770160180702,0.88437378,98.124,98.095,28.36]
[1770160180908,0.88437378,98.124,98.085,28.36]
[1770160181102,0.88437378,98.124,98.086,28.36]
[1770160181708,0.19281804,98.125,98.087,0.03692472]
[1770160182108,0.15589332,98.125,98.1,8.38951489]
[1770160182310,0.15589332,98.125,98.101,28.36]
[1770160182519,0.11954769,98.125,98.101,28.36]
[1770160182709,1.04055664,98.125,98.06,8.38951489]
[1770160182910,1.04055664,98.125,98.061,28.36]
[1770160183427,1.04055664,98.125,98.062,0.03583145]
[1770160184818,1.04055664,98.125,98.061,28.36]
[1770160185016,1.04055664,98.125,98.062,0.07080116]
[1770160185934,1.04055664,98.125,98.071,0.10501947]
[1770160191937,1.04055664,98.125,98.014,1.02026241]
[1770160191938,0.9919419,98.12,98.042,0.34389446]
[1770160192235,0.9919419,98.12,98.043,28.36]
[1770160192425,0.9919419,98.115,98.043,28.36]
[1770160193840,0.9919419,98.115,97.971,85.69277344]
[1770160193841,4.27527085,98.093,98.014,1.122223]
[1770160194041,4.27527085,98.077,98.014,1.122223]
[1770160194341,0.03382325,98.076,98.014,1.122223]
[1770160195118,4.27527085,98.077,98.021,1.122223]
[1770160195326,0.03382325,98.088,98.021,1.122223]
[1770160195533,0.03382325,98.088,98.031,1.122223]
[1770160195744,4.27527085,98.094,98.031,1.122223]
[1770160196525,4.27527085,98.094,98.041,1.122223]
[1770160196937,4.27527085,98.09,98.041,1.122223]
[1770160197743,4.27527085,98.098,98.041,1.122223]
[1770160197923,4.27527085,98.098,98.051,1.122223]
[1770160198345,25.67401345,98.14,98.071,1.122223]
[1770160198646,0.2,98.14,98.091,1.122223]
[1770160198835,0.2,98.14,98.101,1.122223]
[1770160199741,0.17190422,98.137,98.087,1.122223]
[1770160200045,10.19118666,98.124,98.087,1.122223]
[1770160200281,10.19118666,98.124,98.08,1.122223]
[1770160200463,4.44717507,98.126,98.08,1.122223]
[1770160200754,0.15743813,98.121,98.069,1.122223]
[1770160201628,0.11954769,98.125,98.081,1.122223]
[1770160201841,0.11954769,98.125,98.101,1.122223]
[1770160202321,0.11954769,98.125,98.061,1.122223]
[1770160202525,0.12856773,98.124,98.063,1.122223]
[1770160205130,0.12856773,98.124,98.065,1.122223]
[1770160206533,0.07107855,98.123,98.065,1.122223]
[1770160207644,0.11954769,98.125,98.065,1.122223]
[1770160207950,0.17630728,98.125,98.065,1.122223]
[1770160208629,0.04246227,98.123,98.065,1.122223]
[1770160208854,0.04246227,98.12,98.065,1.122223]
[1770160209150,0.04246227,98.12,98.056,1.122223]
[1770160209347,0.04246227,98.12,98.055,28.36]
[1770160210135,0.04246227,98.12,98.056,1.122223]
[1770160210334,0.11954769,98.125,98.061,1.122223]
[1770160210546,0.11954769,98.125,98.06,8.32254348]
[1770160210547,0.11954769,98.125,98.063,1.122223]
[1770160210736,0.11954769,98.125,98.071,1.122223]
[1770160211151,0.11954769,98.125,98.072,28.36]
[1770160211329,0.11954769,98.125,98.073,1.122223]
[1770160211528,0.11954769,98.125,98.081,1.122223]
[1770160211730,5.44513103,98.14,98.112,1.10698069]
[1770160211933,5.44513103,98.14,98.08,8.32254348]
[1770160211934,1.11189476,98.179,98.131,1.10698069]